fUSD/lending_fUSD_20240829
["ID","MTS","AMOUNT","RATE_DAILY","PERIOD"]
[336609015,1724971835486,-36233.6432112,0.00024902,4]
[336609016,1724971835495,-36233.6432112,0.00024909,4]
[336609017,1724971835505,-500.0,0.00024909,4]
[336609018,1724971835514,-500.0,0.00024909,4]
[336609019,1724971835523,-500.0,0.00024909,4]
[336609020,1724971835533,-530.94,0.00024909,4]
[336609021,1724971835542,-1077.27,0.00024909,4]
[336609022,1724971835551,-500.0,0.00024909,4]
[336609023,1724971835561,-500.0,0.00024909,4]
[336609024,1724971835826,-500.0,0.00024909,4]
[336609025,1724971835836,-500.0,0.00024909,4]
[336609026,1724971835846,-481.19219094,0.00024909,4]
[336609027,1724971835856,-500.0,0.00024909,4]
[336609028,1724971835866,-500.0,0.00024909,4]
[336609029,1724971835875,-500.0,0.00024909,4]
[336609030,1724971835884,-500.0,0.00024909,4]
[336609031,1724971835894,-500.0,0.00024909,4]
[336609032,1724971835903,-500.0,0.00024909,4]
[336609033,1724971835915,-500.0,0.00024909,4]
[336609034,1724971835925,-500.0,0.00024909,4]
[336609035,1724971835934,-300.0,0.00024909,4]
[336609036,1724971835944,-62183.31250796,0.0002491,4]
[336609037,1724971835963,-609.86344662,0.0002491,4]
[336609038,1724971835974,-5950.0,0.0002491,4]
[336609039,1724971835989,-2399.99999998,0.0002491,4]
[336609040,1724971836002,-4223.30804722,0.0002491,4]
[336609041,1724971836014,-3152.61260283,0.0002491,4]
[336609042,1724971836027,-14400.67152058,0.0002491,4]
[336609043,1724971836037,-368.84115434,0.0002491,4]
[336609044,1724971836049,-2221.59238554,0.0002491,4]
[336609045,1724971836063,-295.635,0.0002491,4]
[336609046,1724971836075,-3476.12861861,0.0002491,4]
[336609047,1724971836085,-5912.0,0.0002491,4]
[336609048,1724971836097,-5693.984656,0.0002491,4]
[336609049,1724971836108,-899.999998,0.0002491,4]
[336609050,1724971836119,-6853.41873983,0.0002491,4]
[336609055,1724971837734,-748.74749312,0.00024708,2]
[336609056,1724971837745,-867.34817936,0.00024708,2]
[336609057,1724971837755,-419.75900635,0.0002491,4]
[336609058,1724971837766,-835.77,0.0002491,4]
[336609059,1724971837777,-1339.53078098,0.0002491,4]
[336609060,1724971837789,-1522.84487017,0.0002491,4]
[336609061,1724971837800,-330.10141379,0.0002491,4]
[336609062,1724971837812,-29047.07754972,0.0002491,4]
[336609063,1724971837824,-838.06519917,0.0002491,4]
[336609064,1724971837839,-293.96425695,0.0002491,4]
[336609065,1724971837855,-1692.85057735,0.0002491,4]
[336609066,1724971837867,-1332.26643592,0.0002491,4]
[336609067,1724971837879,-1038.45,0.0002491,4]
[336609068,1724971837890,-2735.53908701,0.0002491,4]
[336609069,1724971837901,-500.54133244,0.0002491,4]
[336609070,1724971837970,-255.3477856,0.0002491,4]
[336609071,1724971838005,-29492.000001,0.0002491,4]
[336609072,1724971838016,-653.67901261,0.0002491,4]
[336609213,1724971839638,-361.64479204,0.0002491,4]
[336609215,1724971839650,-926.75198862,0.0002491,4]
[336609223,1724971839718,-1175.8607,0.0002491,4]
[336609226,1724971839730,-491.06999,0.0002491,4]
[336609228,1724971839742,-406.6664562,0.0002491,4]
[336609230,1724971839754,-4953.88774757,0.0002491,4]
[336609232,1724971839763,-500.0,0.00024911,4]
[336609234,1724971839773,-500.0,0.00024911,4]
[336609236,1724971839783,-500.0,0.00024911,4]
[336609238,1724971839793,-530.94,0.00024911,4]
[336609240,1724971839803,-1077.27,0.00024911,4]
[336609242,1724971839812,-500.0,0.00024911,4]
[336609244,1724971839821,-500.0,0.00024911,4]
[336609246,1724971839831,-500.0,0.00024911,4]
[336609248,1724971839841,-500.0,0.00024911,4]
[336609250,1724971839850,-500.0,0.00024911,4]
[336609252,1724971839859,-500.0,0.00024911,4]
[336609254,1724971839868,-500.0,0.00024911,4]
[336609256,1724971839878,-500.0,0.00024911,4]
[336609258,1724971839887,-500.0,0.00024911,4]
[336609260,1724971839896,-500.0,0.00024911,4]
[336609262,1724971839906,-500.0,0.00024911,4]
[336609264,1724971839916,-500.0,0.00024911,4]
[336609265,1724971839926,-300.0,0.00024911,4]
[336609267,1724971839939,-8083.99560514,0.00024912,2]
[336609269,1724971839951,-22030.57846898,0.00024912,2]
[336609271,1724971839964,-3130.56271148,0.00024912,2]
[336609273,1724971839973,-876.82145709,0.00024912,2]
[336609275,1724971839983,-799.9461442,0.00024912,2]
[336609277,1724971839992,-10124.74685818,0.00024912,2]
[336609279,1724971840005,-1076.0,0.00024912,2]
[336609281,1724971840016,-541.98227884,0.00024912,2]
[336609283,1724971840028,-350.705,0.00024912,2]
[336609285,1724971840040,-540.0,0.00024912,2]
[336609287,1724971840051,-12489.09615918,0.00024912,2]
[336609289,1724971840061,-230.7,0.00024918,4]
[336609291,1724971840071,-1616.09567248,0.00024918,2]
[336609293,1724971840080,-5367.44790931,0.00024919,4]
[336609295,1724971840090,-2333.1,0.00024919,4]
[336609297,1724971840100,-351.78,0.00024919,4]
[336609299,1724971840110,-2257.27,0.00024919,4]
[336609301,1724971840120,-2257.27,0.00024919,4]
[336609302,1724971840130,-3334.6,0.00024919,4]
[336609303,1724971840140,-3334.6,0.00024919,4]
[336609304,1724971840150,-4291.18,0.00024919,4]
[336609305,1724971840160,-500.0,0.00024919,4]
[336609306,1724971840170,-500.0,0.00024919,4]
[336609307,1724971840186,-500.0,0.00024919,4]
[336609308,1724971840196,-500.0,0.00024919,4]
[336609309,1724971840206,-476.20816708,0.00024919,4]
[336609310,1724971840215,-500.0,0.00024919,4]
[336609311,1724971840227,-500.0,0.00024919,4]
[336609313,1724971840236,-500.0,0.00024919,4]
[336609315,1724971840246,-575.85431658,0.00024919,4]
[336609317,1724971840258,-1183.61,0.00024919,4]
[336609319,1724971840269,-1183.61,0.00024919,4]
[336609321,1724971840279,-500.0,0.00024919,4]
[336609323,1724971840288,-500.0,0.00024919,4]
[336609325,1724971840297,-500.0,0.00024919,4]
[336609327,1724971840306,-500.0,0.00024919,4]
[336609329,1724971840316,-500.0,0.00024919,4]
[336609331,1724971840325,-500.0,0.00024919,4]
[336609333,1724971840334,-530.94,0.00024919,4]
[336609335,1724971840344,-530.94,0.00024919,4]
[336609337,1724971840353,-1077.27,0.00024919,4]
[336609339,1724971840362,-1077.27,0.00024919,4]
[336609341,1724971840372,-500.0,0.00024919,4]
[336609343,1724971840381,-500.0,0.00024919,4]
[336609345,1724971840390,-500.0,0.00024919,4]
[336609347,1724971840402,-500.0,0.00024919,4]
[336609348,1724971840411,-500.0,0.00024919,4]
[336609350,1724971840421,-500.0,0.00024919,4]
[336609352,1724971840430,-500.0,0.00024919,4]
[336609355,1724971840441,-500.0,0.00024919,4]
[336609357,1724971840450,-500.0,0.00024919,4]
[336609358,1724971840459,-500.0,0.00024919,4]
[336609360,1724971840469,-500.0,0.00024919,4]
[336609361,1724971840478,-500.0,0.00024919,4]
[336609362,1724971840489,-500.0,0.00024919,4]
[336609363,1724971840498,-500.0,0.00024919,4]
[336609365,1724971840508,-500.0,0.00024919,4]
[336609367,1724971840517,-500.0,0.00024919,4]
[336609369,1724971840526,-508.17206272,0.00024919,4]
[336609371,1724971840536,-418.32546,0.00024919,2]
[336609373,1724971840545,-500.0,0.00024919,4]
[336609376,1724971840556,-500.0,0.00024919,4]
[336609377,1724971840566,-500.0,0.00024919,4]
[336609379,1724971840576,-500.0,0.00024919,4]
[336609381,1724971840586,-649.27584085,0.00024919,4]
[336609383,1724971840595,-600.0,0.00024919,4]
[336609385,1724971840605,-600.0,0.00024919,4]
[336609387,1724971840615,-500.0,0.00024919,4]
[336609389,1724971840625,-500.0,0.00024919,4]
[336609391,1724971840635,-367.2059694,0.00024919,4]
[336609393,1724971840645,-500.0,0.00024919,4]
[336609395,1724971840655,-500.0,0.0002492,4]
[336609397,1724971840665,-500.0,0.0002492,4]
[336609399,1724971840675,-500.0,0.0002492,4]
[336609401,1724971840686,-500.0,0.0002492,4]
[336609403,1724971840696,-500.0,0.0002492,4]
[336609405,1724971840706,-500.0,0.0002492,4]
[336609407,1724971840716,-500.0,0.0002492,4]
[336609409,1724971840725,-500.0,0.0002492,4]
[336609411,1724971840735,-500.0,0.0002492,4]
[336609413,1724971840744,-1762.45,0.0002492,4]
[336609415,1724971840754,-500.0,0.0002492,4]
[336609417,1724971840763,-1150.11,0.0002492,4]
[336609419,1724971840772,-500.0,0.0002492,4]
[336609421,1724971840782,-500.0,0.0002492,4]
[336609423,1724971840791,-2114.95,0.0002492,4]
[336609425,1724971840801,-500.0,0.0002492,4]
[336609427,1724971840810,-1595.45,0.0002492,4]
[336609428,1724971840820,-2386.25,0.0002492,4]
[336609431,1724971840829,-1341.16,0.0002492,4]
[336609432,1724971840838,-1547.87,0.0002492,4]
[336609435,1724971840848,-500.0,0.0002492,4]
[336609437,1724971840857,-1789.99,0.0002492,4]
[336609439,1724971840867,-2006.67,0.0002492,4]
[336609441,1724971840876,-1445.22,0.0002492,4]
[336609443,1724971840886,-500.0,0.0002492,4]
[336609445,1724971840895,-500.0,0.0002492,4]
[336609447,1724971840905,-500.0,0.0002492,4]
[336609448,1724971840914,-2085.75,0.0002492,4]
[336609450,1724971840923,-6255.68,0.0002492,4]
[336609453,1724971840935,-500.0,0.0002492,4]
[336609455,1724971840945,-500.0,0.0002492,4]
[336609457,1724971840954,-2000.29,0.0002492,4]
[336609459,1724971840963,-500.0,0.0002492,4]
[336609461,1724971840973,-500.0,0.0002492,4]
[336609463,1724971840982,-224.83,0.0002492,4]
[336609465,1724971840991,-500.0,0.0002492,4]
[336609466,1724971841001,-500.0,0.0002492,4]
[336609468,1724971841010,-491.52,0.0002492,4]
[336609470,1724971841020,-500.0,0.0002492,4]
[336609471,1724971841029,-383.46,0.0002492,4]
[336609474,1724971841039,-644.52,0.0002492,4]
[336609476,1724971841049,-500.0,0.0002492,4]
[336609478,1724971841058,-1381.81,0.0002492,4]
[336609480,1724971841068,-1381.81,0.0002492,4]
[336609482,1724971841078,-1381.81,0.0002492,4]
[336609483,1724971841087,-1381.81,0.0002492,4]
[336609485,1724971841097,-1381.81,0.0002492,4]
[336609487,1724971841107,-500.0,0.0002492,4]
[336609489,1724971841116,-569.87,0.0002492,4]
[336609491,1724971841126,-500.0,0.0002492,4]
[336609493,1724971841135,-500.0,0.0002492,4]
[336609495,1724971841145,-500.0,0.0002492,4]
[336609497,1724971841154,-170.08,0.0002492,4]
[336609499,1724971841163,-2087.79,0.0002492,4]
[336609501,1724971841173,-500.0,0.0002492,4]
[336609503,1724971841185,-2087.79,0.0002492,4]
[336609505,1724971841195,-209.44,0.0002492,4]
[336609507,1724971841204,-2087.79,0.0002492,4]
[336609509,1724971841213,-2087.79,0.0002492,4]
[336609511,1724971841223,-2087.79,0.0002492,4]
[336609513,1724971841232,-500.0,0.0002492,4]
[336609515,1724971841241,-294.95,0.0002492,4]
[336609517,1724971841251,-1478.58,0.0002492,4]
[336609527,1724971841352,-1478.58,0.0002492,4]
[336609529,1724971841363,-1478.58,0.0002492,4]
[336609531,1724971841373,-1478.58,0.0002492,4]
[336609533,1724971841382,-1478.58,0.0002492,4]
[336609535,1724971841392,-500.0,0.0002492,4]
[336609537,1724971841403,-500.0,0.0002492,4]
[336609539,1724971841412,-526.94,0.0002492,4]
[336609541,1724971841421,-500.0,0.0002492,4]
[336609543,1724971841430,-470.18,0.0002492,4]
[336609545,1724971841441,-1588.64,0.0002492,4]
[336609547,1724971841450,-1588.64,0.0002492,4]
[336609549,1724971841459,-1588.64,0.0002492,4]
[336609551,1724971841469,-1588.64,0.0002492,4]
[336609553,1724971841478,-1588.64,0.0002492,4]
[336609554,1724971841487,-1726.77,0.0002492,4]
[336609555,1724971841496,-1726.77,0.0002492,4]
[336609556,1724971841505,-1726.77,0.0002492,4]
[336609557,1724971841515,-1726.77,0.0002492,4]
[336609558,1724971841525,-1726.77,0.0002492,4]
[336609559,1724971841534,-1414.2,0.0002492,4]
[336609560,1724971841544,-1414.2,0.0002492,4]
[336609561,1724971841553,-1414.2,0.0002492,4]
[336609562,1724971841563,-1414.2,0.0002492,4]
[336609563,1724971841572,-1414.2,0.0002492,4]
[336609564,1724971841582,-1844.62,0.0002492,4]
[336609565,1724971841592,-1844.62,0.0002492,4]
[336609566,1724971841602,-1844.62,0.0002492,4]
[336609567,1724971841611,-1378.05,0.0002492,4]
[336609568,1724971841621,-1844.62,0.0002492,4]
[336609569,1724971841630,-1378.05,0.0002492,4]
[336609570,1724971841639,-1844.62,0.0002492,4]
[336609571,1724971841648,-1378.05,0.0002492,4]
[336609572,1724971841657,-1378.05,0.0002492,4]
[336609573,1724971841666,-1378.05,0.0002492,4]
[336609574,1724971841675,-1904.6,0.0002492,4]
[336609575,1724971841685,-1904.6,0.0002492,4]
[336609576,1724971841694,-1876.3,0.0002492,4]
[336609577,1724971841703,-1904.6,0.0002492,4]
[336609578,1724971841712,-1876.3,0.0002492,4]
[336609579,1724971841722,-1904.6,0.0002492,4]
[336609580,1724971841731,-1876.3,0.0002492,4]
[336609581,1724971841739,-1876.3,0.0002492,4]
[336609582,1724971841749,-1876.3,0.0002492,4]
[336609583,1724971841758,-1904.6,0.0002492,4]
[336609584,1724971841768,-5294.87,0.0002492,4]
[336609585,1724971841777,-5294.87,0.0002492,4]
[336609586,1724971841786,-5294.87,0.0002492,4]
[336609587,1724971841795,-5294.87,0.0002492,4]
[336609588,1724971841805,-5294.87,0.0002492,4]
[336609589,1724971841814,-1614.3,0.0002492,4]
[336609590,1724971841824,-1614.3,0.0002492,4]
[336609591,1724971841833,-1614.3,0.0002492,4]
[336609592,1724971841842,-1614.3,0.0002492,4]
[336609593,1724971841851,-1614.3,0.0002492,4]
[336609594,1724971841860,-1758.05,0.0002492,4]
[336609595,1724971841869,-1758.05,0.0002492,4]
[336609596,1724971841878,-1758.05,0.0002492,4]
[336609597,1724971841887,-1758.05,0.0002492,4]
[336609598,1724971841896,-1758.05,0.0002492,4]
[336609599,1724971841905,-1721.35,0.0002492,4]
[336609600,1724971841914,-1721.35,0.0002492,4]
[336609601,1724971841923,-1721.35,0.0002492,4]
[336609602,1724971841932,-1721.35,0.0002492,4]
[336609603,1724971841945,-1721.35,0.0002492,4]
[336609604,1724971841954,-1871.1,0.0002492,4]
[336609605,1724971841963,-1871.1,0.0002492,4]
[336609606,1724971841972,-1871.1,0.0002492,4]
[336609607,1724971841981,-1871.1,0.0002492,4]
[336609608,1724971841990,-1871.1,0.0002492,4]
[336609609,1724971841999,-2178.9,0.0002492,4]
[336609610,1724971842008,-2178.9,0.0002492,4]
[336609611,1724971842018,-2178.9,0.0002492,4]
[336609612,1724971842026,-2178.9,0.0002492,4]
[336609613,1724971842036,-2178.9,0.0002492,4]
[336609614,1724971842044,-1043.65,0.0002492,4]
[336609615,1724971842053,-1043.65,0.0002492,4]
[336609616,1724971842062,-1043.65,0.0002492,4]
[336609617,1724971842071,-1043.65,0.0002492,4]
[336609618,1724971842080,-1043.65,0.0002492,4]
[336609619,1724971842088,-1465.85,0.0002492,4]
[336609620,1724971842097,-1465.85,0.0002492,4]
[336609621,1724971842106,-1465.85,0.0002492,4]
[336609622,1724971842115,-1465.85,0.0002492,4]
[336609623,1724971842124,-1465.85,0.0002492,4]
[336609624,1724971842133,-1657.48,0.0002492,4]
[336609625,1724971842142,-1657.48,0.0002492,4]
[336609626,1724971842151,-1657.48,0.0002492,4]
[336609627,1724971842160,-1657.48,0.0002492,4]
[336609628,1724971842169,-1657.48,0.0002492,4]
[336609629,1724971842178,-1469.63,0.0002492,4]
[336609630,1724971842192,-1469.63,0.0002492,4]
[336609631,1724971842200,-1469.63,0.0002492,4]
[336609632,1724971842210,-1469.63,0.0002492,4]
[336609633,1724971842219,-1469.63,0.0002492,4]
[336609634,1724971842228,-500.0,0.0002492,4]
[336609635,1724971842237,-343.96873448,0.0002492,4]
[336609636,1724971842246,-500.0,0.0002492,4]
[336609637,1724971842255,-500.0,0.0002492,4]
[336609638,1724971842265,-500.0,0.0002492,4]
[336609639,1724971842274,-500.0,0.0002492,4]
[336609640,1724971842283,-500.0,0.0002492,4]
[336609641,1724971842292,-1553.82,0.0002492,4]
[336609642,1724971842302,-1553.82,0.0002492,4]
[336609643,1724971842312,-1553.82,0.0002492,4]
[336609644,1724971842321,-1553.82,0.0002492,4]
[336609645,1724971842331,-1553.82,0.0002492,4]
[336609646,1724971842341,-1926.16,0.0002492,4]
[336609647,1724971842351,-1926.16,0.0002492,4]
[336609648,1724971842361,-1926.16,0.0002492,4]
[336609649,1724971842370,-1926.16,0.0002492,4]
[336609650,1724971842379,-1926.16,0.0002492,4]
[336609651,1724971842389,-500.0,0.0002492,4]
[336609652,1724971842399,-500.0,0.0002492,4]
[336609653,1724971842408,-500.0,0.0002492,4]
[336609654,1724971842418,-500.0,0.0002492,4]
[336609655,1724971842428,-500.0,0.0002492,4]
[336609656,1724971842441,-500.0,0.0002492,4]
[336609657,1724971842450,-491.982979,0.0002492,4]
[336609658,1724971842460,-573.42,0.0002492,4]
[336609659,1724971842469,-573.42,0.0002492,4]
[336609660,1724971842478,-573.42,0.0002492,4]
[336609661,1724971842488,-500.0,0.0002492,4]
[336609662,1724971842498,-500.0,0.0002492,4]
[336609663,1724971842507,-500.0,0.0002492,4]
[336609664,1724971842516,-500.0,0.0002492,4]
[336609665,1724971842526,-500.0,0.0002492,4]
[336609666,1724971842536,-500.0,0.0002492,4]
[336609667,1724971842546,-500.0,0.0002492,4]
[336609668,1724971842556,-500.0,0.0002492,4]
[336609669,1724971842566,-500.0,0.0002492,4]
[336609670,1724971842575,-1685.9,0.0002492,4]
[336609671,1724971842585,-1685.9,0.0002492,4]
[336609672,1724971842595,-546.67,0.0002492,4]
[336609673,1724971842604,-546.67,0.0002492,4]
[336609674,1724971842613,-544.4,0.0002492,4]
[336609675,1724971842623,-544.4,0.0002492,4]
[336609676,1724971842633,-544.4,0.0002492,4]
[336609677,1724971842643,-527.51,0.0002492,4]
[336609678,1724971842653,-527.51,0.0002492,4]
[336609679,1724971842664,-527.51,0.0002492,4]
[336609680,1724971842672,-500.0,0.0002492,4]
[336609682,1724971842680,-465.22919125,0.0002492,4]
[336609684,1724971842695,-649.07,0.0002492,4]
[336609685,1724971842704,-649.07,0.0002492,4]
[336609686,1724971842713,-649.07,0.0002492,4]
[336609687,1724971842722,-500.0,0.0002492,4]
[336609688,1724971842732,-323.98,0.0002492,4]
[336609689,1724971842741,-596.31,0.0002492,4]
[336609690,1724971842750,-596.31,0.0002492,4]
[336609691,1724971842759,-596.31,0.0002492,4]
[336609692,1724971842768,-500.0,0.0002492,4]
[336609693,1724971842777,-500.0,0.0002492,4]
[336609694,1724971842786,-500.0,0.0002492,4]
[336609695,1724971842795,-500.0,0.0002492,4]
[336609696,1724971842805,-500.0,0.0002492,4]
[336609697,1724971842814,-500.0,0.0002492,4]
[336609698,1724971842823,-500.0,0.0002492,4]
[336609699,1724971842833,-500.0,0.0002492,4]
[336609700,1724971842843,-689.43,0.0002492,4]
[336609701,1724971842852,-689.43,0.0002492,4]
[336609702,1724971842862,-500.0,0.0002492,4]
[336609703,1724971842870,-500.0,0.0002492,4]
[336609704,1724971842880,-500.0,0.0002492,4]
[336609705,1724971842889,-500.0,0.0002492,4]
[336609706,1724971842899,-938.53,0.0002492,4]
[336609707,1724971842908,-938.53,0.0002492,4]
[336609708,1724971842919,-829.78,0.0002492,4]
[336609709,1724971842928,-829.78,0.0002492,4]
[336609710,1724971842942,-500.0,0.0002492,4]
[336609711,1724971842950,-500.0,0.0002492,4]
[336609712,1724971842960,-507.76,0.0002492,4]
[336609713,1724971842968,-507.76,0.0002492,4]
[336609714,1724971842978,-507.76,0.0002492,4]
[336609715,1724971842987,-4826.03,0.0002492,4]
[336609717,1724971842998,-4826.03,0.0002492,4]
[336609719,1724971843007,-4826.03,0.0002492,4]
[336609722,1724971843017,-972.59,0.0002492,4]
[336609724,1724971843028,-972.59,0.0002492,4]
[336609726,1724971843038,-972.59,0.0002492,4]
[336609728,1724971843047,-688.44,0.0002492,4]
[336609730,1724971843057,-688.44,0.0002492,4]
[336609732,1724971843067,-688.44,0.0002492,4]
[336609734,1724971843076,-576.08,0.0002492,4]
[336609735,1724971843087,-576.08,0.0002492,4]
[336609736,1724971843096,-576.08,0.0002492,4]
[336609738,1724971843106,-514.89,0.0002492,4]
[336609739,1724971843118,-514.89,0.0002492,4]
[336609740,1724971843127,-514.89,0.0002492,4]
[336609742,1724971843137,-571.37,0.0002492,4]
[336609744,1724971843146,-571.37,0.0002492,4]
[336609746,1724971843156,-571.37,0.0002492,4]
[336609748,1724971843165,-879.19,0.0002492,4]
[336609750,1724971843174,-879.19,0.0002492,4]
[336609752,1724971843188,-879.19,0.0002492,4]
[336609754,1724971843197,-879.19,0.0002492,4]
[336609756,1724971843206,-879.19,0.0002492,4]
[336609758,1724971843215,-879.19,0.0002492,4]
[336609760,1724971843224,-500.0,0.0002492,4]
[336609762,1724971843234,-500.0,0.0002492,4]
[336609764,1724971843243,-500.0,0.0002492,4]
[336609765,1724971843252,-500.0,0.0002492,4]
[336609766,1724971843262,-500.0,0.0002492,4]
[336609767,1724971843271,-500.0,0.0002492,4]
[336609768,1724971843281,-500.0,0.0002492,4]
[336609769,1724971843292,-500.0,0.0002492,4]
[336609770,1724971843302,-747.56,0.0002492,4]
[336609771,1724971843311,-747.56,0.0002492,4]
[336609772,1724971843322,-747.56,0.0002492,4]
[336609773,1724971843332,-6569.77,0.0002492,4]
[336609774,1724971843342,-6569.77,0.0002492,4]
[336609775,1724971843352,-6569.77,0.0002492,4]
[336609776,1724971843362,-1205.47,0.0002492,4]
[336609777,1724971843371,-1205.47,0.0002492,4]
[336609778,1724971843380,-600.03,0.0002492,4]
[336609779,1724971843389,-600.03,0.0002492,4]
[336609780,1724971843399,-600.03,0.0002492,4]
[336609781,1724971843408,-600.03,0.0002492,4]
[336609782,1724971843418,-600.16034143,0.0002492,4]
[336609783,1724971843428,-1766.95,0.0002492,4]
[336609784,1724971843440,-1766.95,0.0002492,4]
[336609785,1724971843450,-1766.95,0.0002492,4]
[336609786,1724971843459,-1766.95,0.0002492,4]
[336609787,1724971843469,-1766.95,0.0002492,4]
[336609788,1724971843478,-1767.06,0.0002492,4]
[336609789,1724971843488,-1373.07,0.0002492,4]
[336609790,1724971843497,-1373.07,0.0002492,4]
[336609791,1724971843506,-1373.07,0.0002492,4]
[336609792,1724971843515,-1373.07,0.0002492,4]
[336609793,1724971843525,-1373.08,0.0002492,4]
[336609794,1724971843534,-12460.91,0.0002492,4]
[336609795,1724971843545,-12460.91,0.0002492,4]
[336609796,1724971843555,-12460.91,0.0002492,4]
[336609797,1724971843566,-12460.91,0.0002492,4]
[336609798,1724971843576,-12461.11742464,0.0002492,4]
[336609799,1724971843585,-2333.1,0.0002492,4]
[336609800,1724971843595,-2333.1,0.0002492,4]
[336609801,1724971843605,-2333.1,0.0002492,4]
[336609802,1724971843615,-2333.1,0.0002492,4]
[336609803,1724971843625,-2333.1,0.0002492,4]
[336609804,1724971843635,-2257.27,0.0002492,4]
[336609805,1724971843644,-2257.27,0.0002492,4]
[336609806,1724971843655,-3334.6,0.0002492,4]
[336609807,1724971843665,-3334.6,0.0002492,4]
[336609808,1724971843675,-4291.18,0.0002492,4]
[336609809,1724971843685,-4291.18,0.0002492,4]
[336609810,1724971843695,-4291.18,0.0002492,4]
[336609811,1724971843705,-4291.18,0.0002492,4]
[336609812,1724971843715,-4291.19,0.0002492,4]
[336609813,1724971843724,-500.0,0.0002492,4]
[336609814,1724971843734,-500.0,0.0002492,4]
[336609815,1724971843744,-500.0,0.0002492,4]
[336609816,1724971843754,-500.0,0.0002492,4]
[336609817,1724971843763,-500.0,0.0002492,4]
[336609818,1724971843772,-500.0,0.0002492,4]
[336609819,1724971843782,-1183.61,0.0002492,4]
[336609820,1724971843792,-1183.61,0.0002492,4]
[336609821,1724971843801,-1183.61,0.0002492,4]
[336609822,1724971843811,-500.0,0.0002492,4]
[336609823,1724971843821,-238.89110173,0.0002492,4]
[336609824,1724971843830,-500.0,0.0002492,4]
[336609825,1724971843840,-500.0,0.0002492,4]
[336609826,1724971843849,-500.0,0.0002492,4]
[336609827,1724971843858,-500.0,0.0002492,4]
[336609828,1724971843868,-530.94,0.0002492,4]
[336609829,1724971843877,-530.94,0.0002492,4]
[336609830,1724971843887,-1077.27,0.0002492,4]
[336609831,1724971843896,-1077.27,0.0002492,4]
[336609832,1724971843905,-251.74785518,0.0002492,4]
[336609833,1724971843914,-500.0,0.0002492,4]
[336609834,1724971843924,-500.0,0.0002492,4]
[336609835,1724971843933,-500.0,0.0002492,4]
[336609836,1724971843947,-500.0,0.0002492,4]
[336609837,1724971843964,-500.0,0.0002492,4]
[336609838,1724971843973,-500.0,0.0002492,4]
[336609839,1724971843982,-348.36962785,0.0002492,4]
[336609840,1724971843991,-622.46698122,0.0002492,4]
[336609841,1724971844000,-500.0,0.0002492,4]
[336609842,1724971844009,-500.0,0.0002492,4]
[336609843,1724971844019,-500.0,0.0002492,4]
[336609844,1724971844028,-500.0,0.0002492,4]
[336609845,1724971844037,-500.0,0.0002492,4]
[336609846,1724971844047,-500.0,0.0002492,4]
[336609847,1724971844056,-500.0,0.0002492,4]
[336609848,1724971844065,-500.0,0.0002492,4]
[336609849,1724971844074,-600.0,0.0002492,4]
[336609850,1724971844083,-600.0,0.0002492,4]
[336609851,1724971844093,-600.0,0.0002492,4]
[336609852,1724971844102,-500.0,0.0002492,4]